[Event "Early-Titled-Tuesday-Blitz-May-14-2024"]
[Site "Chess.com"]
[Date "2024.05.14"]
[Round "5"]
[White "jaramsdal"]
[Black "Mbneu"]
[Result "1-0"]
[WhiteElo "2388"]
[BlackElo "2224"]
[TimeControl "180+1"]
[EndTime "8:57:35 PDT"]
[Termination "jaramsdal won on time"]

1. e4 {[%clk 0:03:00.9]} 1... c5 {[%clk 0:02:59]} 2. a3 {[%clk 0:03:00.2]} 2...
Nf6 {[%clk 0:02:58.4]} 3. e5 {[%clk 0:02:59.6]} 3... Nd5 {[%clk 0:02:58.3]} 4.
Bc4 {[%clk 0:02:59.1]} 4... Nb6 {[%clk 0:02:57.6]} 5. Ba2 {[%clk 0:02:58.5]}
5... d5 {[%clk 0:02:55.4]} 6. exd6 {[%clk 0:02:55.8]} 6... exd6 {[%clk
0:02:54.2]} 7. Ne2 {[%clk 0:02:49.7]} 7... Be7 {[%clk 0:02:50.2]} 8. O-O {[%clk
0:02:49.5]} 8... O-O {[%clk 0:02:49]} 9. d4 {[%clk 0:02:50.1]} 9... Bf6 {[%clk
0:02:47.1]} 10. Be3 {[%clk 0:02:47.7]} 10... Bg4 {[%clk 0:02:24.8]} 11. Nbc3
{[%clk 0:02:30.9]} 11... c4 {[%clk 0:02:23.2]} 12. h3 {[%clk 0:02:20.8]} 12...
Bh5 {[%clk 0:02:17.9]} 13. Ne4 {[%clk 0:02:02.3]} 13... d5 {[%clk 0:02:08.2]}
14. Nxf6+ {[%clk 0:01:57.9]} 14... Qxf6 {[%clk 0:02:09.1]} 15. Qd2 {[%clk
0:01:52.9]} 15... Nc6 {[%clk 0:02:02.6]} 16. Nf4 {[%clk 0:01:49.9]} 16... Bg6
{[%clk 0:01:58]} 17. Nxg6 {[%clk 0:01:46.9]} 17... hxg6 {[%clk 0:01:37.6]} 18.
Rae1 {[%clk 0:01:34.6]} 18... Rfe8 {[%clk 0:01:33.6]} 19. c3 {[%clk 0:01:28.5]}
19... Ne7 {[%clk 0:01:25.9]} 20. Bg5 {[%clk 0:01:27.7]} 20... Qd6 {[%clk
0:01:25.5]} 21. Bb1 {[%clk 0:01:21.9]} 21... Nf5 {[%clk 0:01:16.8]} 22. g4
{[%clk 0:01:13.4]} 22... Ne7 {[%clk 0:01:07.1]} 23. h4 {[%clk 0:01:11.6]} 23...
f6 {[%clk 0:00:59.4]} 24. Bf4 {[%clk 0:01:09.7]} 24... Qd7 {[%clk 0:00:59.4]}
25. f3 {[%clk 0:01:07.3]} 25... Rad8 {[%clk 0:00:38.5]} 26. Qh2 {[%clk 0:01:06]}
26... Kf7 {[%clk 0:00:32.2]} 27. Bc7 {[%clk 0:00:50.3]} 27... Rc8 {[%clk
0:00:31.4]} 28. Bd6 {[%clk 0:00:51]} 28... Nc6 {[%clk 0:00:27.5]} 29. h5 {[%clk
0:00:47.8]} 29... g5 {[%clk 0:00:14.5]} 30. Bf5 {[%clk 0:00:38]} 30... Rxe1
{[%clk 0:00:10.1]} 31. Rxe1 {[%clk 0:00:35.6]} 31... Qd8 {[%clk 0:00:09.6]} 32.
Bg6+ {[%clk 0:00:25.6]} 32... Kg8 {[%clk 0:00:08.6]} 33. h6 {[%clk 0:00:19.8]}
33... Nd7 {[%clk 0:00:00.2]} 34. hxg7 {[%clk 0:00:19.1]} 1-0

[Event "Early-Titled-Tuesday-Blitz-May-14-2024"]
[Site "Chess.com"]
[Date "2024.05.14"]
[Round "5"]
[White "rudolfjun2005"]
[Black "agvega14"]
[Result "1-0"]
[WhiteElo "2443"]
[BlackElo "2151"]
[TimeControl "180+1"]
[EndTime "8:57:37 PDT"]
[Termination "rudolfjun2005 won by resignation"]

1. e4 {[%clk 0:02:58.4]} 1... c5 {[%clk 0:02:56.2]} 2. Nf3 {[%clk 0:02:58.3]}
2... a6 {[%clk 0:02:56.3]} 3. c4 {[%clk 0:02:53.6]} 3... d6 {[%clk 0:02:54.1]}
4. Nc3 {[%clk 0:02:53.5]} 4... Nf6 {[%clk 0:02:51.5]} 5. d4 {[%clk 0:02:53.5]}
5... cxd4 {[%clk 0:02:51.1]} 6. Nxd4 {[%clk 0:02:53.8]} 6... e6 {[%clk 0:02:52]}
7. Be3 {[%clk 0:02:53.9]} 7... Qc7 {[%clk 0:02:49.1]} 8. Be2 {[%clk 0:02:53.7]}
8... Nbd7 {[%clk 0:02:49.1]} 9. O-O {[%clk 0:02:53.9]} 9... b6 {[%clk
0:02:49.2]} 10. Rc1 {[%clk 0:02:54.1]} 10... Bb7 {[%clk 0:02:49.9]} 11. f3
{[%clk 0:02:54.4]} 11... Rc8 {[%clk 0:02:50.5]} 12. Qd2 {[%clk 0:02:54.9]} 12...
Qb8 {[%clk 0:02:51.2]} 13. Rfd1 {[%clk 0:02:55.4]} 13... Be7 {[%clk 0:02:52]}
14. Kh1 {[%clk 0:02:55.8]} 14... O-O {[%clk 0:02:51.9]} 15. b4 {[%clk
0:02:56.1]} 15... Rfe8 {[%clk 0:02:51.9]} 16. a4 {[%clk 0:02:55.5]} 16... Bd8
{[%clk 0:02:49.9]} 17. Qa2 {[%clk 0:02:55.1]} 17... d5 {[%clk 0:02:36.3]} 18.
exd5 {[%clk 0:02:39.9]} 18... exd5 {[%clk 0:02:34.2]} 19. Bg1 {[%clk 0:02:39.8]}
19... dxc4 {[%clk 0:02:18.9]} 20. Bxc4 {[%clk 0:02:38.6]} 20... Ne5 {[%clk
0:02:09.5]} 21. Bf1 {[%clk 0:02:32.9]} 21... Qa8 {[%clk 0:01:58.1]} 22. b5
{[%clk 0:02:23.4]} 22... axb5 {[%clk 0:01:47.8]} 23. Ncxb5 {[%clk 0:02:21]}
23... Rxc1 {[%clk 0:01:38.1]} 24. Rxc1 {[%clk 0:02:20.9]} 24... Bd5 {[%clk
0:01:34.6]} 25. Qa3 {[%clk 0:02:14.9]} 25... h5 {[%clk 0:00:56.1]} 26. Bf2
{[%clk 0:01:57.9]} 26... Ng6 {[%clk 0:00:28.5]} 27. Nd6 {[%clk 0:01:50]} 27...
Rf8 {[%clk 0:00:25.4]} 28. Rc8 {[%clk 0:01:44.8]} 28... Qa5 {[%clk 0:00:19.9]}
29. N6b5 {[%clk 0:01:22.8]} 29... Qd2 {[%clk 0:00:17.2]} 30. Qe3 {[%clk
0:01:20.5]} 30... Qxe3 {[%clk 0:00:16.6]} 31. Bxe3 {[%clk 0:01:20.3]} 31... h4
{[%clk 0:00:17.3]} 32. Nf5 {[%clk 0:01:15.9]} 32... h3 {[%clk 0:00:16.7]} 33.
gxh3 {[%clk 0:01:05.4]} 33... Nh5 {[%clk 0:00:16.4]} 34. Nfd6 {[%clk 0:00:56.4]}
34... Be7 {[%clk 0:00:15.9]} 35. Rxf8+ {[%clk 0:00:55.1]} 35... Bxf8 {[%clk
0:00:16.8]} 36. Bxb6 {[%clk 0:00:55.3]} 36... Ngf4 {[%clk 0:00:15.9]} 37. Bg2
{[%clk 0:00:51.7]} 37... Nxg2 {[%clk 0:00:15.3]} 38. Kxg2 {[%clk 0:00:52.3]}
38... Nf4+ {[%clk 0:00:15.8]} 39. Kg3 {[%clk 0:00:52.4]} 39... Ne2+ {[%clk
0:00:15.3]} 40. Kf2 {[%clk 0:00:52.4]} 40... Nf4 {[%clk 0:00:14.4]} 41. a5
{[%clk 0:00:51.7]} 41... Nxh3+ {[%clk 0:00:11.9]} 42. Ke3 {[%clk 0:00:50]} 42...
Ng5 {[%clk 0:00:11.1]} 43. a6 {[%clk 0:00:49.9]} 43... Nxf3 {[%clk 0:00:08.2]}
44. a7 {[%clk 0:00:49]} 44... Ne5 {[%clk 0:00:07.3]} 45. Kd4 {[%clk 0:00:42.9]}
45... Bg2 {[%clk 0:00:06.8]} 46. Kxe5 {[%clk 0:00:42.1]} 46... f6+ {[%clk
0:00:07]} 47. Kd4 {[%clk 0:00:40.9]} 1-0

[Event "Early-Titled-Tuesday-Blitz-May-14-2024"]
[Site "Chess.com"]
[Date "2024.05.14"]
[Round "5"]
[White "RobertoJBM"]
[Black "Franmu14"]
[Result "1-0"]
[WhiteElo "2850"]
[BlackElo "2663"]
[TimeControl "180+1"]
[EndTime "8:57:40 PDT"]
[Termination "RobertoJBM won by resignation"]

1. d4 {[%clk 0:03:00.9]} 1... d5 {[%clk 0:02:59]} 2. Nf3 {[%clk 0:03:00.8]} 2...
e6 {[%clk 0:02:59.7]} 3. e3 {[%clk 0:03:00.9]} 3... Nf6 {[%clk 0:03:00.4]} 4.
Bd3 {[%clk 0:03:01]} 4... c5 {[%clk 0:03:01.1]} 5. c3 {[%clk 0:03:00.8]} 5...
Nc6 {[%clk 0:03:01.7]} 6. Nbd2 {[%clk 0:03:01.3]} 6... Bd6 {[%clk 0:03:02.3]} 7.
O-O {[%clk 0:03:01.1]} 7... O-O {[%clk 0:03:02.1]} 8. dxc5 {[%clk 0:03:01.5]}
8... Bxc5 {[%clk 0:03:02.1]} 9. e4 {[%clk 0:03:02.1]} 9... e5 {[%clk 0:03:00.9]}
10. b4 {[%clk 0:03:01.2]} 10... Bb6 {[%clk 0:03:00]} 11. a3 {[%clk 0:03:00.5]}
11... Re8 {[%clk 0:02:58.1]} 12. c4 {[%clk 0:02:59]} 12... dxe4 {[%clk
0:02:11.4]} 13. Nxe4 {[%clk 0:02:57.6]} 13... h6 {[%clk 0:02:10.8]} 14. c5
{[%clk 0:02:53]} 14... Bc7 {[%clk 0:02:10]} 15. Nxf6+ {[%clk 0:02:49.9]} 15...
Qxf6 {[%clk 0:02:09.6]} 16. Be4 {[%clk 0:02:48.4]} 16... Bf5 {[%clk 0:02:08.9]}
17. Qc2 {[%clk 0:02:31.4]} 17... Bxe4 {[%clk 0:02:02.1]} 18. Qxe4 {[%clk
0:02:30.9]} 18... Rad8 {[%clk 0:02:02.6]} 19. Be3 {[%clk 0:02:22.8]} 19... a6
{[%clk 0:01:57.1]} 20. Rfd1 {[%clk 0:02:20.1]} 20... Qe6 {[%clk 0:01:56.9]} 21.
Nh4 {[%clk 0:01:49.2]} 21... g6 {[%clk 0:00:37.6]} 22. g4 {[%clk 0:01:27.9]}
22... Kh7 {[%clk 0:00:36]} 23. h3 {[%clk 0:01:25.4]} 23... Rxd1+ {[%clk
0:00:33.5]} 24. Rxd1 {[%clk 0:01:24.8]} 24... Rd8 {[%clk 0:00:34.2]} 25. Rxd8
{[%clk 0:01:23.2]} 25... Nxd8 {[%clk 0:00:33]} 26. Kg2 {[%clk 0:01:19]} 26...
Qc6 {[%clk 0:00:32.9]} 27. Qxc6 {[%clk 0:01:16.9]} 27... bxc6 {[%clk 0:00:32.7]}
28. Kf3 {[%clk 0:01:12.7]} 28... Ne6 {[%clk 0:00:22.2]} 29. Ke4 {[%clk
0:01:11.2]} 29... f6 {[%clk 0:00:22]} 30. Ng2 {[%clk 0:01:04.1]} 30... Kg7
{[%clk 0:00:21.9]} 31. h4 {[%clk 0:01:03.4]} 31... Bb8 {[%clk 0:00:12.8]} 32. h5
{[%clk 0:00:58.1]} 32... Ng5+ {[%clk 0:00:10.7]} 33. Bxg5 {[%clk 0:00:57.3]}
33... hxg5 {[%clk 0:00:11.4]} 34. hxg6 {[%clk 0:00:57.1]} 34... Kxg6 {[%clk
0:00:12.3]} 35. Ne3 {[%clk 0:00:57.2]} 35... Kf7 {[%clk 0:00:12.3]} 36. Kf5
{[%clk 0:00:56.3]} 36... Bc7 {[%clk 0:00:11.3]} 37. f3 {[%clk 0:00:55.7]} 37...
Ke7 {[%clk 0:00:11.7]} 38. Nc4 {[%clk 0:00:55.4]} 38... Bd8 {[%clk 0:00:10.6]}
39. Nd6 {[%clk 0:00:55.1]} 39... Kd7 {[%clk 0:00:10.6]} 40. Ne4 {[%clk
0:00:53.6]} 40... a5 {[%clk 0:00:08.9]} 41. Nxf6+ {[%clk 0:00:52.3]} 41... Kc7
{[%clk 0:00:07.4]} 42. Kxe5 {[%clk 0:00:46.8]} 42... axb4 {[%clk 0:00:08.3]} 43.
axb4 {[%clk 0:00:47.2]} 43... Kb7 {[%clk 0:00:09.2]} 44. Ne4 {[%clk 0:00:39.6]}
44... Ka6 {[%clk 0:00:09.3]} 45. Nd6 {[%clk 0:00:39.9]} 45... Bc7 {[%clk
0:00:08.7]} 46. f4 {[%clk 0:00:38.7]} 46... gxf4 {[%clk 0:00:08.5]} 47. Kxf4
{[%clk 0:00:39.6]} 47... Bd8 {[%clk 0:00:08.6]} 48. g5 {[%clk 0:00:39.5]} 48...
Be7 {[%clk 0:00:08.9]} 49. Kf5 {[%clk 0:00:39.9]} 49... Bf8 {[%clk 0:00:09.4]}
50. Kf6 {[%clk 0:00:40.3]} 1-0

[Event "Early-Titled-Tuesday-Blitz-May-14-2024"]
[Site "Chess.com"]
[Date "2024.05.14"]
[Round "5"]
[White "rpragchess"]
[Black "lilleper1"]
[Result "1-0"]
[WhiteElo "3102"]
[BlackElo "2914"]
[TimeControl "180+1"]
[EndTime "8:57:42 PDT"]
[Termination "rpragchess won on time"]

1. Nf3 {[%clk 0:03:00.9]} 1... Nf6 {[%clk 0:02:59.1]} 2. g3 {[%clk 0:03:00.3]}
2... d5 {[%clk 0:02:59.2]} 3. Bg2 {[%clk 0:03:00]} 3... e6 {[%clk 0:02:59.9]} 4.
O-O {[%clk 0:02:58.2]} 4... Be7 {[%clk 0:03:00.5]} 5. d3 {[%clk 0:02:52.9]} 5...
O-O {[%clk 0:03:00.7]} 6. Nbd2 {[%clk 0:02:52.6]} 6... Nc6 {[%clk 0:02:57.5]} 7.
c3 {[%clk 0:02:47.8]} 7... e5 {[%clk 0:02:56.8]} 8. Qc2 {[%clk 0:02:40.7]} 8...
h6 {[%clk 0:02:56.2]} 9. b4 {[%clk 0:02:40]} 9... a6 {[%clk 0:02:51.1]} 10. Rb1
{[%clk 0:02:35.9]} 10... Be6 {[%clk 0:02:46.5]} 11. a4 {[%clk 0:02:30.3]} 11...
b5 {[%clk 0:02:43.4]} 12. Bb2 {[%clk 0:02:11]} 12... Qd7 {[%clk 0:02:37]} 13.
Rfe1 {[%clk 0:02:01.3]} 13... e4 {[%clk 0:02:23.1]} 14. dxe4 {[%clk 0:01:52.8]}
14... dxe4 {[%clk 0:02:21.8]} 15. Nxe4 {[%clk 0:01:12.2]} 15... Nxe4 {[%clk
0:02:22.7]} 16. Qxe4 {[%clk 0:01:13.1]} 16... Bf5 {[%clk 0:02:21.9]} 17. Qf4
{[%clk 0:01:10.2]} 17... Bxb1 {[%clk 0:02:18]} 18. Rxb1 {[%clk 0:01:11.1]} 18...
Bd6 {[%clk 0:02:11.8]} 19. Qd2 {[%clk 0:00:58.9]} 19... bxa4 {[%clk 0:02:01]}
20. c4 {[%clk 0:00:58.6]} 20... Qf5 {[%clk 0:01:52.1]} 21. Ra1 {[%clk
0:00:45.3]} 21... Bxb4 {[%clk 0:01:47.7]} 22. Nh4 {[%clk 0:00:45.5]} 22... Qc5
{[%clk 0:01:02]} 23. Qf4 {[%clk 0:00:43.6]} 23... f6 {[%clk 0:00:13.6]} 24. Bd5+
{[%clk 0:00:40.8]} 24... Rf7 {[%clk 0:00:13.1]} 25. Rxa4 {[%clk 0:00:21.2]}
25... Rd8 {[%clk 0:00:13.2]} 26. Qe4 {[%clk 0:00:18.3]} 26... Ne7 {[%clk
0:00:09.5]} 27. Bxf7+ {[%clk 0:00:15.6]} 27... Kxf7 {[%clk 0:00:10.4]} 28. Rxa6
{[%clk 0:00:14.7]} 28... Rd1+ {[%clk 0:00:09.7]} 29. Kg2 {[%clk 0:00:14.6]}
29... Rd2 {[%clk 0:00:09.1]} 30. Bc1 {[%clk 0:00:14]} 30... Rd1 {[%clk
0:00:06.1]} 31. Be3 {[%clk 0:00:12.8]} 31... Qh5 {[%clk 0:00:04.8]} 32. Qe6+
{[%clk 0:00:11.7]} 1-0

[Event "Early-Titled-Tuesday-Blitz-May-14-2024"]
[Site "Chess.com"]
[Date "2024.05.14"]
[Round "5"]
[White "Gangster-accountant01"]
[Black "MiguelBestard1981"]
[Result "1-0"]
[WhiteElo "2556"]
[BlackElo "2321"]
[TimeControl "180+1"]
[EndTime "8:57:43 PDT"]
[Termination "Gangster-accountant01 won by resignation"]

1. c4 {[%clk 0:02:57.7]} 1... c6 {[%clk 0:02:59]} 2. Nc3 {[%clk 0:02:53.6]} 2...
d5 {[%clk 0:02:59.9]} 3. cxd5 {[%clk 0:02:53.2]} 3... cxd5 {[%clk 0:02:59.8]} 4.
d4 {[%clk 0:02:53.3]} 4... Nf6 {[%clk 0:02:54.7]} 5. g3 {[%clk 0:02:52.8]} 5...
Bf5 {[%clk 0:02:52.5]} 6. Bg2 {[%clk 0:02:52.3]} 6... e6 {[%clk 0:02:52.7]} 7.
Nf3 {[%clk 0:02:51.6]} 7... h6 {[%clk 0:02:51.4]} 8. O-O {[%clk 0:02:51.4]} 8...
Nc6 {[%clk 0:02:51.6]} 9. Ne5 {[%clk 0:02:46.5]} 9... Nxe5 {[%clk 0:02:49.5]}
10. dxe5 {[%clk 0:02:46.3]} 10... Nd7 {[%clk 0:02:50.4]} 11. f4 {[%clk
0:02:33.4]} 11... Be7 {[%clk 0:02:46.5]} 12. e4 {[%clk 0:02:32.9]} 12... dxe4
{[%clk 0:02:44.7]} 13. Nxe4 {[%clk 0:02:33.8]} 13... O-O {[%clk 0:02:44.1]} 14.
Nd6 {[%clk 0:02:32.6]} 14... Qb6+ {[%clk 0:02:36.1]} 15. Kh1 {[%clk 0:02:31.9]}
15... Bxd6 {[%clk 0:02:35.5]} 16. Qxd6 {[%clk 0:02:31.2]} 16... Qxd6 {[%clk
0:02:33.7]} 17. exd6 {[%clk 0:02:30.8]} 17... Rab8 {[%clk 0:02:27]} 18. Be3
{[%clk 0:02:29.1]} 18... b6 {[%clk 0:02:24.1]} 19. Rac1 {[%clk 0:02:20.3]} 19...
Rfc8 {[%clk 0:02:22.5]} 20. Bc6 {[%clk 0:02:18.2]} 20... Nc5 {[%clk 0:02:21.4]}
21. Bg2 {[%clk 0:02:13.8]} 21... Be4 {[%clk 0:02:16.5]} 22. Bxc5 {[%clk
0:02:10.3]} 22... Bxg2+ {[%clk 0:02:15.7]} 23. Kxg2 {[%clk 0:02:10.2]} 23...
bxc5 {[%clk 0:02:11.8]} 24. b3 {[%clk 0:02:09.4]} 24... Rd8 {[%clk 0:02:08.3]}
25. Rfd1 {[%clk 0:02:08.7]} 25... Rb6 {[%clk 0:02:07.6]} 26. Rxc5 {[%clk
0:01:59.4]} 26... Rbxd6 {[%clk 0:02:06.8]} 27. Rxd6 {[%clk 0:01:59.5]} 27...
Rxd6 {[%clk 0:02:07.7]} 28. Kf3 {[%clk 0:01:38.6]} 28... Rd2 {[%clk 0:02:05.7]}
29. Ra5 {[%clk 0:01:38.2]} 29... Rd7 {[%clk 0:02:03.3]} 30. Ra6 {[%clk
0:01:35.5]} 30... h5 {[%clk 0:02:01.8]} 31. h4 {[%clk 0:01:35.3]} 31... Kh7
{[%clk 0:02:01]} 32. Ke4 {[%clk 0:01:33.3]} 32... Kg6 {[%clk 0:02:00.9]} 33. b4
{[%clk 0:01:29.6]} 33... Kf6 {[%clk 0:01:56.8]} 34. a4 {[%clk 0:01:27.4]} 34...
Rb7 {[%clk 0:01:53.9]} 35. b5 {[%clk 0:01:25.8]} 35... Rd7 {[%clk 0:01:53.7]}
36. f5 {[%clk 0:01:20.5]} 36... g6 {[%clk 0:01:43.8]} 37. fxe6 {[%clk
0:01:19.1]} 37... fxe6 {[%clk 0:01:43.8]} 38. Rc6 {[%clk 0:01:19.1]} 38... Rd1
{[%clk 0:01:35.9]} 39. Ra6 {[%clk 0:01:18.2]} 39... Re1+ {[%clk 0:01:35.2]} 40.
Kf3 {[%clk 0:01:17.8]} 40... Rf1+ {[%clk 0:01:32]} 41. Kg2 {[%clk 0:01:16.6]}
41... Rb1 {[%clk 0:01:27.2]} 42. Rxa7 {[%clk 0:01:16.5]} 42... Rb4 {[%clk
0:01:27.3]} 43. Ra6 {[%clk 0:01:15.7]} 43... Kf5 {[%clk 0:01:26.5]} 44. b6
{[%clk 0:01:15.4]} 44... Kg4 {[%clk 0:01:25.4]} 45. a5 {[%clk 0:01:12.9]} 45...
Rb2+ {[%clk 0:01:25.2]} 46. Kf1 {[%clk 0:01:12.9]} 46... Kxg3 {[%clk 0:01:12.2]}
47. Ra7 {[%clk 0:01:11]} 47... Kxh4 {[%clk 0:01:10.5]} 48. b7 {[%clk 0:01:10.6]}
48... Rb1+ {[%clk 0:01:10.4]} 49. Ke2 {[%clk 0:01:10.1]} 49... g5 {[%clk
0:01:10.4]} 50. a6 {[%clk 0:01:09.7]} 50... g4 {[%clk 0:01:10.4]} 51. Ra8 {[%clk
0:01:10.1]} 51... Rb2+ {[%clk 0:01:10.1]} 52. Ke3 {[%clk 0:01:09.7]} 52... Rb3+
{[%clk 0:01:08.7]} 53. Kd4 {[%clk 0:01:07.9]} 53... g3 {[%clk 0:00:39.1]} 54.
b8=Q {[%clk 0:01:06.2]} 54... Rxb8 {[%clk 0:00:31.1]} 55. Rxb8 {[%clk
0:01:05.5]} 55... g2 {[%clk 0:00:29.3]} 56. Rg8 {[%clk 0:01:04.6]} 56... Kh3
{[%clk 0:00:29]} 57. a7 {[%clk 0:01:03.5]} 57... Kh2 {[%clk 0:00:29.2]} 58. a8=Q
{[%clk 0:01:01.4]} 58... g1=Q+ {[%clk 0:00:30.1]} 59. Rxg1 {[%clk 0:01:00.5]}
59... Kxg1 {[%clk 0:00:31]} 60. Qf3 {[%clk 0:01:00.5]} 60... h4 {[%clk
0:00:29.9]} 61. Qh3 {[%clk 0:01:00.4]} 61... e5+ {[%clk 0:00:27]} 62. Kxe5
{[%clk 0:00:59.8]} 1-0

[Event "Early-Titled-Tuesday-Blitz-May-14-2024"]
[Site "Chess.com"]
[Date "2024.05.14"]
[Round "5"]
[White "mightysmasher"]
[Black "teresin05"]
[Result "1-0"]
[WhiteElo "2557"]
[BlackElo "2269"]
[TimeControl "180+1"]
[EndTime "8:57:44 PDT"]
[Termination "mightysmasher won by resignation"]

1. e4 {[%clk 0:03:00.9]} 1... c5 {[%clk 0:02:56.1]} 2. c3 {[%clk 0:02:57.3]}
2... Nf6 {[%clk 0:02:55]} 3. e5 {[%clk 0:02:57.3]} 3... Nd5 {[%clk 0:02:55.1]}
4. d4 {[%clk 0:02:58.2]} 4... cxd4 {[%clk 0:02:55.3]} 5. cxd4 {[%clk 0:02:59.1]}
5... d6 {[%clk 0:02:52.4]} 6. Nf3 {[%clk 0:02:56.8]} 6... e6 {[%clk 0:02:46.7]}
7. Bc4 {[%clk 0:02:54.6]} 7... Nb6 {[%clk 0:02:39.8]} 8. Bb3 {[%clk 0:02:52.8]}
8... Nc6 {[%clk 0:02:35.1]} 9. O-O {[%clk 0:02:51.8]} 9... Be7 {[%clk
0:02:30.2]} 10. Nc3 {[%clk 0:02:45.2]} 10... O-O {[%clk 0:02:28.8]} 11. Be3
{[%clk 0:02:43]} 11... Na5 {[%clk 0:02:08.1]} 12. Bc2 {[%clk 0:02:33.9]} 12...
Nac4 {[%clk 0:01:54.2]} 13. Qd3 {[%clk 0:02:26.3]} 13... g6 {[%clk 0:01:52.5]}
14. Rab1 {[%clk 0:02:19.5]} 14... Nxe3 {[%clk 0:01:10.5]} 15. Qxe3 {[%clk
0:02:15.8]} 15... Bd7 {[%clk 0:00:58.2]} 16. Qh6 {[%clk 0:02:02.8]} 16... Bc6
{[%clk 0:00:56.6]} 17. Be4 {[%clk 0:01:55.5]} 17... Nd5 {[%clk 0:00:50.5]} 18.
Bxd5 {[%clk 0:01:47.5]} 18... Bxd5 {[%clk 0:00:39.6]} 19. Nxd5 {[%clk
0:01:46.5]} 19... exd5 {[%clk 0:00:40.5]} 20. Rfe1 {[%clk 0:01:44.7]} 20... Rc8
{[%clk 0:00:32.1]} 21. Re2 {[%clk 0:01:34.8]} 21... dxe5 {[%clk 0:00:30.4]} 22.
Rxe5 {[%clk 0:01:27.2]} 22... Bf6 {[%clk 0:00:20.3]} 23. Re2 {[%clk 0:01:24]}
23... Bg7 {[%clk 0:00:19.4]} 24. Qf4 {[%clk 0:01:20.1]} 24... Qc7 {[%clk
0:00:19.6]} 25. Qd2 {[%clk 0:01:10.9]} 25... Rfe8 {[%clk 0:00:19.3]} 26. g3
{[%clk 0:01:05.4]} 26... Rxe2 {[%clk 0:00:18.7]} 27. Qxe2 {[%clk 0:01:05.3]}
27... Qc2 {[%clk 0:00:19.4]} 28. Re1 {[%clk 0:01:04.9]} 28... Qxe2 {[%clk
0:00:15.7]} 29. Rxe2 {[%clk 0:01:05]} 29... Rc4 {[%clk 0:00:15.2]} 30. Re8+
{[%clk 0:01:04.7]} 30... Bf8 {[%clk 0:00:14.8]} 31. Rd8 {[%clk 0:00:56.3]} 31...
Rb4 {[%clk 0:00:11.5]} 32. b3 {[%clk 0:00:48]} 32... Rb5 {[%clk 0:00:11.6]} 33.
Ne5 {[%clk 0:00:48]} 33... Kg7 {[%clk 0:00:11]} 34. Rd7 {[%clk 0:00:47.7]} 34...
Ra5 {[%clk 0:00:07.8]} 35. Rxf7+ {[%clk 0:00:44.8]} 35... Kg8 {[%clk 0:00:08.2]}
36. a4 {[%clk 0:00:43.2]} 36... Bg7 {[%clk 0:00:07.7]} 37. Rxb7 {[%clk
0:00:41.9]} 37... Ra6 {[%clk 0:00:05.5]} 38. Rb8+ {[%clk 0:00:39.2]} 38... Bf8
{[%clk 0:00:05.8]} 39. Nd7 {[%clk 0:00:39.1]} 39... Kf7 {[%clk 0:00:02.7]} 40.
Rxf8+ {[%clk 0:00:35.3]} 40... Ke7 {[%clk 0:00:02.9]} 41. Nc5 {[%clk 0:00:34.9]}
41... Rb6 {[%clk 0:00:01.6]} 42. Rf3 {[%clk 0:00:33.9]} 42... Kd6 {[%clk
0:00:01.8]} 43. Rf6+ {[%clk 0:00:33.5]} 43... Ke7 {[%clk 0:00:02.1]} 44. Rxb6
{[%clk 0:00:33.5]} 44... axb6 {[%clk 0:00:03]} 45. Nd3 {[%clk 0:00:33.9]} 1-0

[Event "Early-Titled-Tuesday-Blitz-May-14-2024"]
[Site "Chess.com"]
[Date "2024.05.14"]
[Round "5"]
[White "viktorskliarov"]
[Black "yobdc"]
[Result "1-0"]
[WhiteElo "2667"]
[BlackElo "2499"]
[TimeControl "180+1"]
[EndTime "8:57:45 PDT"]
[Termination "viktorskliarov won by checkmate"]

1. e4 {[%clk 0:03:00.9]} 1... c5 {[%clk 0:02:59.9]} 2. Nf3 {[%clk 0:03:00.2]}
2... Nf6 {[%clk 0:02:59.4]} 3. e5 {[%clk 0:02:59.8]} 3... Nd5 {[%clk 0:02:59.6]}
4. Nc3 {[%clk 0:03:00.3]} 4... Nxc3 {[%clk 0:03:00]} 5. dxc3 {[%clk 0:02:59.7]}
5... Nc6 {[%clk 0:03:00.6]} 6. Bf4 {[%clk 0:02:58.9]} 6... Qb6 {[%clk
0:03:00.7]} 7. b3 {[%clk 0:02:50.3]} 7... Qc7 {[%clk 0:03:00.9]} 8. Qd2 {[%clk
0:02:43.6]} 8... e6 {[%clk 0:03:00.9]} 9. h4 {[%clk 0:02:40.2]} 9... h6 {[%clk
0:03:00.6]} 10. O-O-O {[%clk 0:02:34]} 10... a6 {[%clk 0:03:00.4]} 11. Bd3
{[%clk 0:02:19.1]} 11... b5 {[%clk 0:03:00.1]} 12. Be4 {[%clk 0:02:15.8]} 12...
Rb8 {[%clk 0:02:26.6]} 13. Bxc6 {[%clk 0:01:14.2]} 13... Qxc6 {[%clk 0:02:20.1]}
14. Rhe1 {[%clk 0:01:11.2]} 14... Be7 {[%clk 0:02:06.8]} 15. Re3 {[%clk
0:01:07.6]} 15... a5 {[%clk 0:02:03.3]} 16. h5 {[%clk 0:00:55.8]} 16... a4
{[%clk 0:02:03.1]} 17. g4 {[%clk 0:00:33.7]} 17... Ra8 {[%clk 0:01:52.9]} 18. g5
{[%clk 0:00:26.5]} 18... hxg5 {[%clk 0:01:49.5]} 19. Nxg5 {[%clk 0:00:26.4]}
19... Rxh5 {[%clk 0:01:38.6]} 20. Ne4 {[%clk 0:00:26.4]} 20... axb3 {[%clk
0:01:28.2]} 21. cxb3 {[%clk 0:00:24.1]} 21... c4 {[%clk 0:01:20.5]} 22. b4
{[%clk 0:00:17.9]} 22... Rh4 {[%clk 0:01:05.6]} 23. Nd6+ {[%clk 0:00:08.2]}
23... Bxd6 {[%clk 0:01:02]} 24. exd6 {[%clk 0:00:08.6]} 24... Bb7 {[%clk
0:00:17]} 25. Rg3 {[%clk 0:00:08.5]} 25... Kf8 {[%clk 0:00:02.5]} 26. Rdg1
{[%clk 0:00:08.2]} 26... Rh7 {[%clk 0:00:02.4]} 27. Be5 {[%clk 0:00:08]} 27...
g6 {[%clk 0:00:01.6]} 28. Qg5 {[%clk 0:00:06.5]} 28... Qe4 {[%clk 0:00:00.4]}
29. Qe7+ {[%clk 0:00:06.5]} 29... Kg8 {[%clk 0:00:00.6]} 30. Qf6 {[%clk
0:00:06.2]} 30... Qf5 {[%clk 0:00:01]} 31. Rxg6+ {[%clk 0:00:06.3]} 31... fxg6
{[%clk 0:00:00.5]} 32. Rxg6+ {[%clk 0:00:07.2]} 32... Qxg6 {[%clk 0:00:00.1]}
33. Qxg6+ {[%clk 0:00:08.1]} 33... Kf8 {[%clk 0:00:00.5]} 34. Qxh7 {[%clk
0:00:08.4]} 34... Bd5 {[%clk 0:00:00.2]} 35. Qg7+ {[%clk 0:00:08.6]} 35... Ke8
{[%clk 0:00:00.5]} 36. Qg8# {[%clk 0:00:09.5]} 1-0